lending/lending_fUSD_20250516
["ID","MTS","AMOUNT","RATE_DAILY","PERIOD"]
[361302994,1747438248298,-518.65,0.00016438,2]
[361302995,1747438248307,-415.54,0.00016438,2]
[361302996,1747438248317,-827.63,0.00016438,2]
[361302997,1747438248328,-400.0,0.00016438,2]
[361302998,1747438248338,-400.0,0.00016438,2]
[361302999,1747438248348,-863.69,0.00016438,2]
[361303000,1747438248357,-511.36,0.00016438,2]
[361303001,1747438248367,-466.11,0.00016438,2]
[361303002,1747438248376,-400.0,0.00016438,2]
[361303003,1747438248386,-1043.86,0.00016438,2]
[361303004,1747438248395,-439.86,0.00016438,2]
[361303005,1747438248405,-270.38148232,0.00016438,2]
[361303006,1747438248415,-619.33,0.00016438,2]
[361303007,1747438248425,-400.0,0.00016438,2]
[361303008,1747438248434,-10173.34,0.00016438,2]
[361303009,1747438248444,-400.0,0.00016438,2]
[361303010,1747438248453,-579.17,0.00016438,2]
[361303011,1747438248463,-805.82,0.00016438,2]
[361303012,1747438248472,-2917.44,0.00016438,2]
[361303013,1747438248481,-2091.64295753,0.00016438,2]
[361303014,1747438248491,-946.87,0.00016438,2]
[361303015,1747438248500,-928.05,0.00016438,2]
[361303016,1747438248511,-21937.59,0.00016438,2]
[361303017,1747438248522,-400.0,0.00016438,2]
[361303018,1747438248531,-522.56,0.00016438,2]
[361303019,1747438248540,-2619.54,0.00016438,2]
[361303020,1747438248550,-516.34,0.00016438,2]
[361303021,1747438248560,-726.37,0.00016438,2]
[361303022,1747438248569,-1220.57,0.00016438,2]
[361303023,1747438248578,-513.29,0.00016438,2]
[361303024,1747438248588,-644.99,0.00016438,2]
[361303025,1747438248598,-1760.61,0.00016438,2]
[361303026,1747438248607,-1055.13,0.00016438,2]
[361303027,1747438248617,-666.55,0.00016438,2]
[361303028,1747438248626,-1591.84,0.00016438,2]
[361303029,1747438248636,-2007.2,0.00016438,2]
[361303030,1747438248645,-908.48,0.00016438,2]
[361303031,1747438248654,-717.09,0.00016438,2]
[361303032,1747438248664,-400.0,0.00016438,2]
[361303033,1747438248673,-400.0,0.00016438,2]
[361303034,1747438248683,-1301.22,0.00016438,2]
[361303035,1747438248692,-598.77,0.00016438,2]
[361303036,1747438248704,-400.0,0.00016438,2]
[361303037,1747438248716,-487.96,0.00016438,2]
[361303038,1747438248726,-1165.78,0.00016438,2]
[361303039,1747438248735,-637.79,0.00016438,2]
[361303040,1747438248745,-769.79,0.00016438,2]
[361303041,1747438248754,-3221.9,0.00016438,2]
[361303042,1747438248765,-400.0,0.00016438,2]
[361303043,1747438248775,-740.99,0.00016438,2]
[361303044,1747438248784,-1247.17,0.00016438,2]
[361303045,1747438248794,-148030.23,0.00016438,2]
[361303046,1747438248803,-500.0,0.00016438,2]
[361303047,1747438248815,-500.0,0.00016438,2]
[361303048,1747438248824,-500.0,0.00016438,2]
[361303049,1747438248834,-400.0,0.00016438,2]
[361303050,1747438248843,-500.0,0.00016438,2]
[361303051,1747438248852,-400.0,0.00016438,2]
[361303052,1747438248862,-781.78,0.00016438,2]
[361303053,1747438248871,-874.67,0.00016438,2]
[361303054,1747438248881,-755.49,0.00016438,2]
[361303055,1747438248891,-902.97,0.00016438,2]
[361303056,1747438248900,-2239.77,0.00016438,2]
[361303057,1747438248910,-400.0,0.00016438,2]
[361303058,1747438248919,-400.0,0.00016438,2]
[361303059,1747438248928,-400.0,0.00016438,2]
[361303060,1747438248938,-4765.75,0.00016438,2]
[361303061,1747438248947,-578.22,0.00016438,2]
[361303062,1747438248957,-439.85,0.00016438,2]
[361303063,1747438248966,-400.0,0.00016438,2]
[361303064,1747438248975,-1410.38,0.00016438,2]
[361303065,1747438248984,-400.0,0.00016438,2]
[361303066,1747438248993,-3438.25,0.00016438,2]
[361303067,1747438249003,-433.88,0.00016438,2]
[361303068,1747438249013,-4344.62,0.00016438,2]
[361303069,1747438249022,-1714.85,0.00016438,2]
[361303070,1747438249032,-204.47003954,0.00016438,2]
[361303071,1747438249041,-500.0,0.00016438,2]
[361303072,1747438249051,-500.0,0.00016438,2]
[361303073,1747438249060,-400.0,0.00016438,2]
[361303074,1747438249070,-746.713826,0.00016438,2]
[361303075,1747438249080,-152.548471,0.00016438,2]
[361303076,1747438249090,-1223.19,0.00016438,2]
[361303077,1747438249099,-1333.28,0.00016438,2]
[361303078,1747438249109,-406.48,0.00016438,2]
[361303079,1747438249118,-400.0,0.00016438,2]
[361303080,1747438249127,-1371.48,0.00016438,2]
[361303081,1747438249136,-400.0,0.00016438,2]
[361303082,1747438249145,-400.0,0.00016438,2]
[361303083,1747438249154,-400.0,0.00016438,2]
[361303084,1747438249163,-400.0,0.00016438,2]
[361303085,1747438249173,-400.0,0.00016438,2]
[361303086,1747438249182,-881.1,0.00016438,2]
[361303087,1747438249192,-3670.18,0.00016438,2]
[361303088,1747438249201,-608.47,0.00016438,2]
[361303089,1747438249211,-1491.25,0.00016438,2]
[361303090,1747438249220,-659.03,0.00016438,2]
[361303091,1747438249229,-5138.37,0.00016438,2]
[361303092,1747438249238,-424.31,0.00016438,2]
[361303093,1747438249249,-400.0,0.00016438,2]
[361303094,1747438249259,-223.46761254,0.00016438,2]
[361303095,1747438249268,-400.0,0.00016438,2]
[361303096,1747438249277,-11398.78,0.00016438,2]
[361303097,1747438249287,-781.65,0.00016438,2]
[361303098,1747438249297,-455.55,0.00016438,2]
[361303099,1747438249307,-408.03,0.00016438,2]
[361303100,1747438249316,-400.0,0.00016438,2]
[361303101,1747438249326,-698.07,0.00016438,2]
[361303102,1747438249335,-400.0,0.00016438,2]
[361303103,1747438249345,-299.471641,0.00016438,2]
[361303104,1747438249356,-2695.94,0.00016438,2]
[361303105,1747438249366,-3224.36,0.00016438,2]
[361303106,1747438249376,-400.0,0.00016438,2]
[361303107,1747438249386,-547.92,0.00016438,2]
[361303108,1747438249396,-781.98,0.00016438,2]
[361303109,1747438249405,-787.08,0.00016438,2]
[361303110,1747438249415,-400.0,0.00016438,2]
[361303111,1747438249425,-1101.66,0.00016438,2]
[361303112,1747438249435,-1322.19,0.00016438,2]
[361303113,1747438249444,-572.81,0.00016438,2]
[361303114,1747438249454,-1135.54,0.00016438,2]
[361303115,1747438249463,-400.0,0.00016438,2]
[361303116,1747438249473,-6036.08,0.00016438,2]
[361303117,1747438249483,-973.19,0.00016438,2]
[361303118,1747438249492,-1772.99,0.00016438,2]
[361303119,1747438249502,-1005.03,0.00016438,2]
[361303120,1747438249512,-400.0,0.00016438,2]
[361303121,1747438249521,-1980.1,0.00016438,2]
[361303122,1747438249531,-400.0,0.00016438,2]
[361303123,1747438249541,-1964.57,0.00016438,2]
[361303124,1747438249550,-1643.05,0.00016438,2]
[361303125,1747438249560,-400.0,0.00016438,2]
[361303126,1747438249570,-400.0,0.00016438,2]
[361303127,1747438249579,-5106.84740242,0.00016438,2]
[361303128,1747438250327,-1455.66259758,0.00016438,2]
[361303129,1747438250339,-3168.99,0.00016438,2]
[361303130,1747438250348,-400.0,0.00016438,2]
[361303131,1747438250358,-1170.14,0.00016438,2]
[361303132,1747438250368,-2000.0,0.00016438,2]
[361303133,1747438250377,-469.27,0.00016438,2]
[361303134,1747438250386,-1531.69,0.00016438,2]
[361303135,1747438250395,-1836.52,0.00016438,2]
[361303136,1747438250405,-604.85,0.00016438,2]
[361303137,1747438250416,-824.31,0.00016438,2]
[361303138,1747438250425,-624.74,0.00016438,2]
[361303139,1747438250435,-1575.64,0.00016438,2]
[361303140,1747438250444,-1190.3,0.00016438,2]
[361303141,1747438250454,-651.44,0.00016438,2]
[361303142,1747438250463,-417.79,0.00016438,2]
[361303143,1747438250472,-400.0,0.00016438,2]
[361303144,1747438250481,-1500.74,0.00016438,2]
[361303145,1747438250490,-875.45,0.00016438,2]
[361303146,1747438250500,-2040.18,0.00016438,2]
[361303147,1747438250509,-3826.16,0.00016438,2]
[361303148,1747438250518,-400.0,0.00016438,2]
[361303149,1747438250528,-550.01,0.00016438,2]
[361303150,1747438250537,-500.0,0.00016438,2]
[361303151,1747438250546,-502.08,0.00016438,2]
[361303152,1747438250555,-1064.29,0.00016438,2]
[361303153,1747438250564,-483.93,0.00016438,2]
[361303154,1747438250574,-400.0,0.00016438,2]
[361303155,1747438250583,-848.44,0.00016438,2]
[361303156,1747438250593,-3160.03,0.00016438,2]
[361303157,1747438250602,-400.0,0.00016438,2]
[361303158,1747438250611,-691.11,0.00016438,2]
[361303159,1747438250620,-400.0,0.00016438,2]
[361303160,1747438250631,-976.27,0.00016438,2]
[361303161,1747438250640,-400.0,0.00016438,2]
[361303162,1747438250649,-400.0,0.00016438,2]
[361303163,1747438250658,-400.0,0.00016438,2]
[361303164,1747438250667,-400.0,0.00016438,2]
[361303165,1747438250677,-400.0,0.00016438,2]
[361303166,1747438250687,-493.44081331,0.00016438,2]
[361303167,1747438250696,-409.76447124,0.00016438,2]
[361303168,1747438250705,-612.02,0.00016438,2]
[361303169,1747438250716,-908.99,0.00016438,2]
[361303170,1747438250726,-1710.6,0.00016438,2]
[361303171,1747438250735,-400.0,0.00016438,2]
[361303172,1747438250744,-3419.28,0.00016438,2]
[361303173,1747438250753,-400.0,0.00016438,2]
[361303174,1747438250764,-858.5,0.00016438,2]
[361303175,1747438250773,-340.58492416,0.00016438,2]
[361303176,1747438250783,-534.46,0.00016438,2]
[361303177,1747438250794,-464.14,0.00016438,2]
[361303178,1747438250803,-150.0,0.00016438,2]
[361303179,1747438250812,-400.0,0.00016438,2]
[361303180,1747438250821,-400.0,0.00016438,2]
[361303181,1747438250830,-980.4,0.00016438,2]
[361303182,1747438250840,-400.0,0.00016438,2]
[361303183,1747438250849,-1137.6,0.00016438,2]
[361303184,1747438250858,-704.07,0.00016438,2]
[361303185,1747438250867,-2150.33,0.00016438,2]
[361303186,1747438250876,-400.0,0.00016438,2]
[361303187,1747438250884,-159.718211,0.00016438,2]
[361303188,1747438250893,-400.0,0.00016438,2]
[361303189,1747438250902,-3549.72,0.00016438,2]
[361303190,1747438250911,-10254.32,0.00016438,2]
[361303191,1747438250921,-5325.6,0.00016438,2]
[361303192,1747438250930,-518.22,0.00016438,2]
[361303193,1747438250939,-1213.28,0.00016438,2]
[361303194,1747438250949,-400.0,0.00016438,2]
[361303195,1747438250958,-349.87236364,0.00016438,2]
[361303196,1747438250967,-3088.91,0.00016438,2]
[361303197,1747438250976,-1002.21,0.00016438,2]
[361303198,1747438250985,-500.0,0.00016438,2]
[361303199,1747438250994,-1703.94,0.00016438,2]
[361303200,1747438251003,-14592.46,0.00016438,2]
[361303201,1747438251012,-6403.39,0.00016438,2]
[361303202,1747438251021,-3477.57,0.00016438,2]
[361303203,1747438251030,-2718.8,0.00016438,2]
[361303204,1747438251039,-400.0,0.00016438,2]
[361303205,1747438251048,-845.1,0.00016438,2]
[361303206,1747438251057,-790.82,0.00016438,2]
[361303207,1747438251066,-2385.26,0.00016438,2]
[361303208,1747438251075,-400.0,0.00016438,2]
[361303209,1747438251085,-414.05,0.00016438,2]
[361303210,1747438251094,-400.0,0.00016438,2]
[361303211,1747438251103,-1006.42,0.00016438,2]
[361303212,1747438251112,-400.0,0.00016438,2]
[361303213,1747438251121,-682.17,0.00016438,2]
[361303214,1747438251130,-1222.11,0.00016438,2]
[361303215,1747438251139,-1158.79,0.00016438,2]
[361303216,1747438251148,-400.0,0.00016438,2]
[361303217,1747438251158,-400.0,0.00016438,2]
[361303218,1747438251167,-1150.98,0.00016438,2]
[361303219,1747438251176,-1853.53,0.00016438,2]
[361303220,1747438251185,-2697.88,0.00016438,2]
[361303221,1747438251195,-400.0,0.00016438,2]
[361303222,1747438251437,-3039.27,0.00016438,2]
[361303223,1747438251447,-2852.31,0.00016438,2]
[361303224,1747438251456,-15831.97,0.00016438,2]
[361303225,1747438251466,-3608.52,0.00016438,2]
[361303226,1747438251475,-1547.51,0.00016438,2]
[361303227,1747438251484,-400.0,0.00016438,2]
[361303228,1747438251493,-721.12,0.00016438,2]
[361303229,1747438251502,-2196.46,0.00016438,2]
[361303230,1747438251511,-400.0,0.00016438,2]
[361303231,1747438251521,-995.39,0.00016438,2]
[361303232,1747438251530,-1249.51,0.00016438,2]
[361303233,1747438251540,-454.22,0.00016438,2]
[361303234,1747438251549,-5134.18,0.00016438,2]
[361303235,1747438251558,-682.76,0.00016438,2]
[361303236,1747438251567,-2710.69,0.00016438,2]
[361303237,1747438251578,-798.05,0.00016438,2]
[361303238,1747438251587,-1127.45,0.00016438,2]
[361303239,1747438251596,-682.66,0.00016438,2]
[361303240,1747438251606,-400.0,0.00016438,2]
[361303241,1747438251615,-221.09608584,0.00016438,2]
[361303242,1747438251624,-10574.85,0.00016438,2]
[361303243,1747438251633,-400.0,0.00016438,2]
[361303244,1747438251642,-400.0,0.00016438,2]
[361303245,1747438251651,-400.0,0.00016438,2]
[361303246,1747438251660,-400.0,0.00016438,2]
[361303247,1747438251669,-400.0,0.00016438,2]
[361303248,1747438251678,-1414.45,0.00016438,2]
[361303249,1747438251687,-490.18,0.00016438,2]
[361303250,1747438251696,-400.0,0.00016438,2]
[361303251,1747438251705,-1070.85,0.00016438,2]
[361303252,1747438251716,-400.0,0.00016438,2]
[361303253,1747438251725,-728.78,0.00016438,2]
[361303254,1747438251734,-400.0,0.00016438,2]
[361303255,1747438251743,-400.0,0.00016438,2]
[361303256,1747438251752,-448.25,0.00016438,2]
[361303257,1747438251761,-400.0,0.00016438,2]
[361303258,1747438251770,-583.58,0.00016438,2]
[361303259,1747438251779,-3194.86,0.00016438,2]
[361303260,1747438251788,-1042.27,0.00016438,2]
[361303261,1747438251797,-10098.39,0.00016438,2]
[361303262,1747438251807,-920.68,0.00016438,2]
[361303263,1747438251815,-5674.05,0.00016438,2]
[361303264,1747438251825,-2643.51,0.00016438,2]
[361303265,1747438251834,-552.61,0.00016438,2]
[361303266,1747438251842,-400.0,0.00016438,2]
[361303267,1747438251851,-873.54,0.00016438,2]
[361303268,1747438251861,-400.0,0.00016438,2]
[361303269,1747438251870,-400.0,0.00016438,2]
[361303270,1747438251879,-584.66,0.00016438,2]
[361303271,1747438251888,-482.45,0.00016438,2]
[361303272,1747438251897,-400.0,0.00016438,2]
[361303273,1747438251907,-941.43,0.00016438,2]
[361303274,1747438251916,-400.0,0.00016438,2]
[361303275,1747438251924,-400.0,0.00016438,2]
[361303276,1747438251933,-538.46,0.00016438,2]
[361303277,1747438251943,-1126.82,0.00016438,2]
[361303278,1747438251952,-400.0,0.00016438,2]
[361303279,1747438251961,-7774.41,0.00016438,2]
[361303280,1747438251970,-3072.1,0.00016438,2]
[361303281,1747438251979,-603.06,0.00016438,2]
[361303282,1747438251989,-472.76,0.00016438,2]
[361303283,1747438251998,-1313.88,0.00016438,2]
[361303284,1747438252008,-1650.77,0.00016438,2]
[361303285,1747438252017,-7354.04,0.00016438,2]
[361303286,1747438252027,-1247.08,0.00016438,2]
[361303287,1747438252036,-400.0,0.00016438,2]
[361303288,1747438252044,-893.2,0.00016438,2]
[361303289,1747438252054,-400.0,0.00016438,2]
[361303290,1747438252063,-400.0,0.00016438,2]
[361303291,1747438252073,-400.0,0.00016438,2]
[361303292,1747438252081,-756.72,0.00016438,2]
[361303293,1747438252091,-2159.23,0.00016438,2]
[361303294,1747438252100,-1038.12,0.00016438,2]
[361303295,1747438252110,-564.04,0.00016438,2]
[361303296,1747438252119,-195.16211709,0.00016438,2]
[361303297,1747438252127,-124148.18,0.00016438,2]
[361303298,1747438252137,-462.37034215,0.00016438,2]
[361303299,1747438252146,-261.04685695,0.00016438,2]
[361303300,1747438252155,-449.15,0.00016438,2]
[361303301,1747438252164,-602.31,0.00016438,2]
[361303302,1747438252174,-400.0,0.00016438,2]
[361303303,1747438252183,-400.0,0.00016438,2]
[361303304,1747438252192,-1865.14,0.00016438,2]
[361303305,1747438252201,-400.0,0.00016438,2]
[361303306,1747438252211,-414.62,0.00016438,2]
[361303307,1747438252220,-2199.99,0.00016438,2]
[361303308,1747438252230,-1226.52,0.00016438,2]
[361303309,1747438252239,-1057.41,0.00016438,2]
[361303310,1747438252249,-400.0,0.00016438,2]
[361303311,1747438252257,-847.19,0.00016438,2]
[361303312,1747438252267,-400.0,0.00016438,2]
[361303313,1747438252276,-859.12,0.00016438,2]
[361303314,1747438252284,-1691.61,0.00016438,2]
[361303315,1747438252294,-400.0,0.00016438,2]
[361303316,1747438252303,-607.01,0.00016438,2]
[361303317,1747438252312,-489.56,0.00016438,2]
[361303318,1747438252321,-1820.27,0.00016438,2]
[361303319,1747438252330,-24373.06,0.00016438,2]
[361303320,1747438252339,-400.0,0.00016438,2]
[361303321,1747438252348,-922.15,0.00016438,2]
[361303322,1747438252357,-1587.52,0.00016438,2]
[361303323,1747438252366,-11903.15,0.00016438,2]
[361303324,1747438252376,-1587.52,0.00016438,2]
[361303325,1747438252385,-1587.52,0.00016438,2]
[361303326,1747438252394,-1587.52,0.00016438,2]
[361303327,1747438252403,-949.16,0.00016438,2]
[361303328,1747438252412,-1442.57,0.00016438,2]
[361303329,1747438252422,-1561.09,0.00016438,2]
[361303330,1747438252432,-400.0,0.00016438,2]
[361303331,1747438252441,-400.0,0.00016438,2]
[361303332,1747438252450,-591.17,0.00016438,2]
[361303333,1747438252459,-400.0,0.00016438,2]
[361303334,1747438252468,-2163.85,0.00016438,2]
[361303335,1747438252477,-526.58,0.00016438,2]
[361303336,1747438252487,-458.49,0.00016438,2]
[361303337,1747438252496,-1564.96,0.00016438,2]
[361303338,1747438252506,-400.0,0.00016438,2]
[361303339,1747438252515,-1368.51,0.00016438,2]
[361303340,1747438252524,-18699.87,0.00016438,2]
[361303341,1747438252534,-469.96,0.00016438,2]
[361303342,1747438252543,-400.0,0.00016438,2]
[361303343,1747438252552,-400.0,0.00016438,2]
[361303344,1747438252561,-3870.92,0.00016438,2]
[361303345,1747438252570,-400.0,0.00016438,2]
[361303346,1747438252579,-400.0,0.00016438,2]
[361303347,1747438252588,-400.0,0.00016438,2]
[361303348,1747438252597,-1414.64,0.00016438,2]
[361303349,1747438252607,-400.0,0.00016438,2]
[361303350,1747438252616,-3932.6,0.00016438,2]
[361303351,1747438252625,-651.27,0.00016438,2]
[361303352,1747438252635,-451.41,0.00016438,2]
[361303353,1747438252644,-2381.91,0.00016438,2]
[361303354,1747438252653,-959.62,0.00016438,2]
[361303355,1747438252662,-1259.02,0.00016438,2]
[361303356,1747438252670,-1024.43,0.00016438,2]
[361303357,1747438252680,-400.0,0.00016438,2]
[361303358,1747438252690,-400.0,0.00016438,2]
[361303359,1747438252699,-29894.28,0.00016438,2]
[361303360,1747438252708,-400.0,0.00016438,2]
[361303361,1747438252719,-400.0,0.00016438,2]
[361303362,1747438252732,-400.0,0.00016438,2]
[361303363,1747438252741,-400.0,0.00016438,2]
[361303364,1747438252750,-569.02,0.00016438,2]
[361303365,1747438252760,-400.0,0.00016438,2]
[361303366,1747438252769,-400.0,0.00016438,2]
[361303367,1747438252778,-400.0,0.00016438,2]
[361303368,1747438252787,-399.02,0.00016438,2]
[361303369,1747438252796,-400.0,0.00016438,2]
[361303370,1747438252806,-400.0,0.00016438,2]
[361303371,1747438252815,-400.0,0.00016438,2]
[361303372,1747438252824,-1104.49,0.00016438,2]
[361303373,1747438252833,-1543.34,0.00016438,2]
[361303374,1747438252842,-8697.44,0.00016438,2]
[361303375,1747438252851,-1775.35,0.00016438,2]
[361303376,1747438252860,-333.00769338,0.00016438,2]
[361303377,1747438252869,-400.0,0.00016438,2]
[361303378,1747438252878,-400.0,0.00016438,2]
[361303379,1747438252887,-400.0,0.00016438,2]
[361303380,1747438252896,-400.0,0.00016438,2]
[361303381,1747438252905,-482.76,0.00016438,2]
[361303382,1747438252914,-748.34,0.00016438,2]
[361303383,1747438252923,-400.0,0.00016438,2]
[361303384,1747438252932,-400.0,0.00016438,2]
[361303385,1747438252941,-1587.52,0.00016459,2]
[361303386,1747438252950,-500.0,0.00016473,2]
[361303387,1747438252960,-500.0,0.00016473,2]
[361303388,1747438252969,-500.0,0.00016473,2]
[361303389,1747438252978,-160.78302762,0.00016473,2]
[361303390,1747438252987,-500.0,0.00016473,2]
[361303391,1747438252997,-502.56730322,0.00016473,2]
[361303392,1747438253005,-304.14358234,0.00016473,2]
[361303393,1747438253015,-9088.19688164,0.00016483,2]
[361303394,1747438253024,-184.23522243,0.00016493,2]
[361303395,1747438253033,-150.0,0.00016493,10]
[361303396,1747438253042,-500.0,0.00016499,2]
[361303397,1747438253051,-500.0,0.00016499,2]
[361303398,1747438253060,-500.0,0.00016499,2]
[361303399,1747438253069,-500.0,0.00016499,2]
[361303400,1747438253079,-500.0,0.00016499,2]
[361303401,1747438253088,-1587.52,0.00016499,2]
[361303402,1747438253097,-1587.52,0.00016499,2]
[361303403,1747438253106,-248.52971905,0.000165,2]
[361303404,1747438253115,-269943.21600144,0.000165,2]
[361303405,1747438253125,-309971.84053135,0.000165,2]
[361303406,1747438253134,-151.0,0.000165,2]
[361303407,1747438253142,-151.0,0.000165,2]
[361303408,1747438253151,-151.0,0.000165,2]
[361303409,1747438253160,-150.0,0.00016507,2]
[361303410,1747438253169,-200.773,0.00016507,2]
[361303411,1747438253179,-150.0,0.00016507,2]
[361303412,1747438253188,-191.736,0.00016507,2]
[361303413,1747438253197,-284.079,0.00016513,2]
[361303414,1747438253205,-238.851,0.00016513,2]
[361303415,1747438253214,-213.331,0.00016513,2]
[361303416,1747438253223,-183.017,0.00016513,2]
[361303417,1747438253233,-260.843,0.00016513,2]
[361303418,1747438253241,-203.314,0.00016513,2]
[361303419,1747438253250,-150.0,0.0001652,10]
[361303420,1747438253259,-5483.42179693,0.00016521,2]
[361303421,1747438253268,-30560.14923281,0.00016539,2]
[361303422,1747438253277,-12556.05485825,0.00016545,2]
[361303423,1747438253286,-250.0,0.00016548,10]
[361303424,1747438253295,-628.0,0.0001656,2]
[361303425,1747438253304,-798.0,0.0001656,2]
[361303426,1747438253313,-919.0,0.0001656,2]
[361303427,1747438253323,-584.0,0.0001656,2]
[361303428,1747438253331,-1253.0,0.0001656,2]
[361303429,1747438253342,-553.0,0.0001656,2]
[361303430,1747438253351,-1458.0,0.0001656,2]
[361303431,1747438253360,-990.475,0.0001656,2]
[361303432,1747438253369,-5941.0,0.0001656,2]
[361303433,1747438253378,-6822.0,0.0001656,2]
[361303434,1747438253387,-4037.0,0.0001656,2]
[361303435,1747438253396,-1306.0,0.0001656,2]
[361303436,1747438253405,-932.0,0.0001656,2]
[361303437,1747438253414,-154.0,0.0001656,2]
[361303438,1747438253423,-165.1164039,0.00016612,2]
[361303439,1747438253432,-5483.42179693,0.00016612,2]
[361303440,1747438253441,-814.9041481,0.00016659,2]
[361303441,1747438253451,-224.149148,0.0001668,2]
[361303442,1747438253460,-196.0,0.00016685,2]
[361303443,1747438253468,-5483.42179693,0.00016703,2]
[361303444,1747438253478,-500.0,0.0001671,2]
[361303445,1747438253486,-500.0,0.00016711,2]
[361303446,1747438253495,-500.0,0.00016711,2]
[361303447,1747438253504,-500.0,0.00016711,2]
[361303448,1747438253513,-500.0,0.00016711,2]
[361303449,1747438253523,-500.0,0.00016711,2]
[361303450,1747438253532,-405.34869686,0.00016711,2]
[361303451,1747438253542,-150.0,0.00016711,2]
[361303452,1747438253552,-176.83,0.00016711,2]
[361303453,1747438253562,-223.34,0.00016711,2]
[361303454,1747438253571,-500.0,0.00016711,2]
[361303455,1747438253582,-500.0,0.00016711,2]
[361303456,1747438253592,-1587.52,0.00016711,2]
[361303457,1747438253602,-1587.52,0.00016711,2]
[361303458,1747438253612,-1587.52,0.00016711,2]
[361303459,1747438253622,-1587.52,0.00016711,2]
[361303460,1747438253633,-1587.52,0.00016711,2]
[361303461,1747438253643,-869.35971672,0.00016712,2]
[361303462,1747438253652,-151.0,0.00016712,2]
[361303463,1747438253661,-203.416657,0.00016712,2]
[361303464,1747438253671,-400.0,0.00016712,2]
[361303465,1747438253679,-400.0,0.00016712,2]
[361303466,1747438253688,-636.14,0.00016712,2]
[361303467,1747438253697,-436.85,0.00016712,2]
[361303468,1747438253706,-153.81786962,0.00016712,2]
[361303469,1747438253718,-705.91,0.00016712,2]
[361303470,1747438253729,-223.98828054,0.00016712,2]
[361303471,1747438253738,-420.63747761,0.00016712,2]
[361303472,1747438253748,-400.0,0.00016712,2]
[361303473,1747438253758,-493.56,0.00016712,2]
[361303474,1747438253769,-400.0,0.00016712,2]
[361303475,1747438253778,-400.0,0.00016712,2]
[361303476,1747438253788,-400.0,0.00016712,2]
[361303477,1747438253798,-400.0,0.00016712,2]
[361303478,1747438253807,-400.0,0.00016712,2]
[361303479,1747438253816,-441.14,0.00016712,2]
[361303480,1747438253827,-400.0,0.00016712,2]
[361303481,1747438253838,-500.0,0.00016712,2]
[361303482,1747438253848,-933.05,0.00016712,2]
[361303483,1747438253859,-400.0,0.00016712,2]
[361303484,1747438253869,-400.0,0.00016712,2]
[361303485,1747438253878,-400.0,0.00016712,2]
[361303486,1747438253887,-444.25,0.00016712,2]
[361303487,1747438253896,-571.51,0.00016712,2]
[361303488,1747438253905,-398.65796253,0.00016712,2]
[361303489,1747438253914,-708.67,0.00016712,2]
[361303490,1747438253924,-623.88,0.00016712,2]
[361303491,1747438253934,-400.0,0.00016712,2]
[361303492,1747438253943,-400.0,0.00016712,2]
[361303493,1747438253952,-400.0,0.00016712,2]